bitfinex-derivatives/quotes_BTCF0:USTF0_20210104
["timestamp","ask_amount","ask_price","bid_price","bid_amount"]
[1609734748054,1.0,33308.0,33304.0,3.76653567]
[1609734748257,0.5042,33308.0,33304.0,3.76653567]
[1609734748454,0.5042,33308.0,33304.0,3.75056]
[1609734748654,0.77643152,33313.0,33304.0,3.75056]
[1609734749254,0.77643152,33313.0,33312.0,0.14033567]
[1609734749454,0.14033567,33325.0,33312.0,0.14033567]
[1609734749455,0.77691164,33318.0,33316.0,4.2997]
[1609734749655,0.77691164,33318.0,33316.0,0.10527]
[1609734749957,0.88283006,33322.0,33316.0,4.80447]
[1609734750157,0.14033567,33325.0,33316.0,0.10527]
[1609734750656,0.14033567,33325.0,33317.0,3.989]
[1609734751258,0.14033567,33325.0,33324.0,0.14033567]
[1609734751958,0.14033567,33325.0,33317.0,3.989]
[1609734753259,0.77782321,33330.0,33318.0,0.14033567]
[1609734754060,0.77782321,33330.0,33317.0,3.989]
[1609734754760,1.0,33329.0,33317.0,3.989]
[1609734755263,0.14033567,33325.0,33322.0,0.14033567]
[1609734756764,1.14033567,33325.0,33322.0,0.14033567]
[1609734757464,1.14033567,33325.0,33323.0,0.6492]
[1609734760469,0.0888,33324.0,33323.0,0.6492]
[1609734760670,0.14033567,33325.0,33322.0,0.14033567]
[1609734760869,0.14033567,33325.0,33324.0,3.9303]
[1609734761975,0.22943567,33325.0,33324.0,3.9303]
[1609734762675,0.0891,33325.0,33324.0,3.9303]
[1609734762875,1.15931,33335.0,33324.0,3.9303]
[1609734763275,1.15931,33335.0,33332.0,0.14033567]
[1609734763876,0.0904,33334.0,33332.0,0.14033567]
[1609734764277,1.15931,33335.0,33332.0,0.14033567]
[1609734764676,1.0,33334.0,33332.0,0.14033567]
[1609734765075,1.0,33334.0,33324.0,4.2059]
[1609734765477,1.0,33334.0,33330.0,0.14033567]
[1609734765675,1.0,33334.0,33333.0,0.6337]
[1609734766675,1.15931,33335.0,33333.0,0.6337]
[1609734766876,1.15931,33335.0,33333.0,0.63184233]
[1609734767575,0.14033567,33334.0,33333.0,0.63184233]
[1609734768176,0.23053567,33334.0,33333.0,0.63184233]
[1609734768375,0.23053567,33334.0,33330.0,0.14033567]
[1609734768575,1.23053567,33334.0,33330.0,0.14033567]
[1609734769477,0.089,33333.0,33330.0,0.14033567]
[1609734769677,1.14033567,33334.0,33330.0,0.14033567]
[1609734769877,1.0,33334.0,33330.0,0.14033567]
[1609734770679,0.0892,33333.0,33330.0,0.14033567]
[1609734771078,0.5,33339.0,33330.0,0.14033567]
[1609734771479,0.5,33339.0,33337.0,0.14033567]
[1609734772980,0.5,33339.0,33338.0,4.7919]
[1609734773481,0.64033567,33339.0,33338.0,4.7919]
[1609734773881,0.5,33339.0,33338.0,4.7919]
[1609734775583,0.5,33339.0,33338.0,4.93223567]
[1609734775782,0.5,33339.0,33338.0,0.14033567]
[1609734776182,0.2157,33339.0,33338.0,0.14033567]
[1609734776583,0.2157,33339.0,33338.0,1.14033567]
[1609734778587,0.2157,33339.0,33338.0,0.14033567]
[1609734778787,0.77955869,33356.0,33338.0,0.14033567]
[1609734778988,0.77955869,33356.0,33343.0,4.5796]
[1609734779189,0.80875307,33359.0,33343.0,4.5796]
[1609734779190,0.91909011,33359.0,33343.0,4.5796]
[1609734779388,0.91909011,33359.0,33343.0,4.70597]
[1609734779591,0.14033567,33359.0,33358.0,0.14033567]
[1609734780188,0.14033567,33359.0,33358.0,0.1384791]
[1609734780389,0.77912031,33362.0,33353.0,5.0234]
[1609734780591,0.77931059,33363.0,33353.0,5.0234]
[1609734780790,0.77931059,33363.0,33350.0,0.145]
[1609734780990,0.77931059,33363.0,33357.0,4.7979]
[1609734781194,2.17520882,33364.0,33357.0,4.7979]
[1609734781891,1.39563,33364.0,33363.0,0.14033567]
[1609734782789,1.39563,33364.0,33363.0,3.76273567]
[1609734782990,1.19253,33364.0,33363.0,3.76273567]
[1609734783890,1.33286567,33364.0,33363.0,3.76273567]
[1609734784491,1.19253,33364.0,33363.0,3.76273567]
[1609734784693,0.19253,33364.0,33363.0,3.76273567]
[1609734784892,0.10233,33364.0,33363.0,3.76273567]
[1609734785093,1.0,33369.0,33363.0,3.76273567]
[1609734785894,1.0,33369.0,33368.0,0.14033567]
[1609734786694,1.06232177,33372.0,33368.0,0.14033567]
[1609734786996,1.06232177,33372.0,33371.0,4.1967]
[1609734787396,0.77912177,33372.0,33371.0,4.1967]
[1609734788899,0.7795978,33374.0,33371.0,4.1967]
[1609734790000,0.14033567,33376.0,33373.0,0.14033567]
[1609734790800,0.14033567,33376.0,33365.0,1.11063]
[1609734792002,0.2859,33377.0,33368.0,0.14033567]
[1609734792604,1.0,33370.0,33368.0,0.14033567]
[1609734793907,0.14033567,33369.0,33368.0,0.14033567]
[1609734794606,1.0,33371.0,33368.0,0.14033567]
[1609734796007,0.14033567,33370.0,33368.0,0.14033567]
[1609734796407,0.14033567,33370.0,33368.0,4.38643567]
[1609734798610,1.0,33369.0,33368.0,0.14033567]
[1609734801010,4.829,33369.0,33365.0,0.11063]
[1609734801211,1.0,33369.0,33358.0,0.15365]
[1609734801411,1.0,33369.0,33354.0,4.735]
[1609734802012,1.0,33369.0,33359.0,0.14033567]
[1609734802612,1.0,33360.0,33359.0,0.14033567]
[1609734804016,1.14033567,33360.0,33359.0,0.14033567]
[1609734804714,5.78783567,33360.0,33343.0,0.12637]
[1609734805115,5.78783567,33360.0,33339.0,3.937]
[1609734805917,5.89236567,33360.0,33339.0,3.937]
[1609734806117,5.75203,33360.0,33345.0,0.14033567]
[1609734806520,5.75203,33360.0,33342.0,0.11633]
[1609734806719,1.0,33346.0,33342.0,0.11633]
[1609734808021,1.0,33346.0,33339.0,3.38353]
[1609734808225,1.0,33346.0,33330.0,1.0]
[1609734808425,5.2581,33346.0,33333.0,0.14033567]
[1609734808625,5.2581,33346.0,33321.0,4.9382]
[1609734808626,4.2581,33346.0,33321.0,4.9382]
[1609734809024,0.2957,33345.0,33293.0,0.288]
[1609734809225,4.9788,33322.0,33290.0,3.5985]
[1609734810627,1.0,33314.0,33290.0,3.5985]
[1609734811227,1.0,33314.0,33311.0,0.14033567]
[1609734811827,1.0,33314.0,33311.0,3.78673567]
[1609734812628,1.0,33312.0,33311.0,3.78673567]
[1609734813334,1.0,33312.0,33311.0,3.6464]
[1609734813934,1.0,33312.0,33311.0,3.78673567]
[1609734814131,1.0,33312.0,33311.0,3.6464]
[1609734814730,1.0,33331.0,33311.0,3.6464]
[1609734814930,1.0,33331.0,33311.0,3.76535]
[1609734815833,1.0,33331.0,33327.0,0.14033567]
[1609734816732,0.2901,33336.0,33327.0,0.14033567]
[1609734817632,0.2901,33336.0,33318.0,0.15441]
[1609734817932,0.2901,33336.0,33323.0,0.14033567]
[1609734818634,1.0,33323.0,33318.0,0.15441]
[1609734819935,0.14033567,33319.0,33318.0,0.29474567]
[1609734821336,0.14033567,33319.0,33318.0,0.15441]
[1609734821536,0.14033567,33319.0,33311.0,0.11895]
[1609734821736,0.14033567,33319.0,33307.0,1.0]
[1609734821937,1.0,33323.0,33316.0,0.14033567]
[1609734822338,1.0,33323.0,33318.0,3.6919]
[1609734822738,0.11736,33328.0,33318.0,3.6919]
[1609734823440,0.2901,33336.0,33318.0,3.6919]
[1609734823939,0.2901,33336.0,33327.0,0.14033567]
[1609734824640,1.0,33330.0,33327.0,0.14033567]
[1609734824840,1.0,33330.0,33318.0,3.6919]
[1609734825944,1.0,33330.0,33326.0,0.14033567]
[1609734826745,0.2901,33336.0,33326.0,0.14033567]
[1609734827146,3.7375,33336.0,33326.0,0.14033567]
[1609734827547,0.2901,33336.0,33326.0,0.14033567]
[1609734827749,0.2901,33336.0,33328.0,3.487]
[1609734827949,0.2901,33336.0,33330.0,0.14033567]
[1609734828650,1.0,33331.0,33330.0,0.14033567]
[1609734829949,1.14033567,33331.0,33330.0,0.14033567]
[1609734830751,0.14033567,33331.0,33330.0,0.14033567]
[1609734833758,1.0,33333.0,33328.0,3.487]
[1609734834356,0.14033567,33329.0,33328.0,3.62733567]
[1609734836058,1.0,33330.0,33328.0,3.487]
[1609734836659,1.14033567,33329.0,33328.0,3.62733567]
[1609734837561,1.23003567,33329.0,33328.0,3.62733567]
[1609734837760,1.14033567,33329.0,33328.0,3.62733567]
[1609734838161,1.14033567,33329.0,33328.0,3.487]
[1609734840662,0.14033567,33329.0,33328.0,3.487]
[1609734841566,0.14033567,33329.0,33325.0,0.14033567]
[1609734842565,0.14033567,33329.0,33323.0,4.8535]
[1609734842765,0.14033567,33324.0,33323.0,4.99383567]
[1609734844368,0.14033567,33324.0,33323.0,0.14033567]
[1609734844569,0.14033567,33324.0,33315.0,0.13435]
[1609734844769,0.14033567,33324.0,33312.0,4.0212]
[1609734844971,0.14033567,33324.0,33280.0,2.36871394]
[1609734844972,0.13338,33332.0,33280.0,0.1771]
[1609734845171,0.12301,33325.0,33302.0,4.1222]
[1609734845371,0.12301,33325.0,33309.0,0.14033567]
[1609734846371,0.12301,33325.0,33280.0,0.1771]
[1609734846570,0.12301,33325.0,33309.0,4.1737]
[1609734847374,0.14033567,33310.0,33309.0,4.1737]
[1609734847574,0.14033567,33310.0,33305.0,0.14033567]
[1609734847973,0.16012,33314.0,33297.0,4.6378]
[1609734849375,0.16012,33314.0,33305.0,0.14033567]
[1609734850675,1.0,33310.0,33305.0,0.14033567]
[1609734851375,0.14033567,33306.0,33305.0,0.14033567]
[1609734853880,1.0,33311.0,33297.0,4.78128]
[1609734855382,1.0,33311.0,33299.0,0.14033567]
[1609734855984,1.0,33311.0,33297.0,4.78128]
[1609734856786,1.0,33302.0,33297.0,4.78128]
[1609734857188,1.0,33302.0,33297.0,0.14348]
[1609734857388,1.0,33302.0,33263.0,2.1972329]
[1609734857589,1.0,33302.0,33267.0,2.20120778]
[1609734858090,1.0,33302.0,33301.0,0.14033567]
[1609734858491,1.0,33302.0,33301.0,3.77333567]
[1609734858691,0.16012,33314.0,33301.0,3.77333567]
[1609734859091,0.77632456,33322.0,33301.0,3.77333567]
[1609734860092,0.14033567,33302.0,33301.0,3.77333567]
[1609734860593,0.14033567,33302.0,33301.0,0.14033567]
[1609734861595,0.14033567,33302.0,33298.0,0.16565]
[1609734862197,0.14033567,33302.0,33299.0,0.14033567]
[1609734862396,5.09721,33315.0,33298.0,0.16565]
[1609734862698,1.0,33313.0,33298.0,0.16565]
[1609734864098,1.0,33313.0,33300.0,4.0374]
[1609734864299,1.0,33313.0,33307.0,0.14033567]
[1609734864599,1.0,33313.0,33307.0,0.62193567]
[1609734864800,0.78121255,33320.0,33307.0,0.14033567]
[1609734864999,0.78121255,33320.0,33311.0,4.3153]
[1609734866399,0.78121255,33320.0,33319.0,0.14033567]
[1609734866599,0.78131344,33321.0,33319.0,0.29942567]
[1609734866799,0.78131344,33321.0,33319.0,0.15909]
[1609734867303,0.78702585,33337.0,33319.0,0.15909]
[1609734867500,0.0892,33331.0,33319.0,0.81599]
[1609734868500,0.0892,33331.0,33329.0,0.14033567]
[1609734868900,1.0,33337.0,33329.0,0.14033567]
[1609734869901,0.0903,33336.0,33329.0,0.14033567]
[1609734870400,0.14033567,33330.0,33329.0,0.14033567]
[1609734871702,0.23023567,33330.0,33329.0,0.14033567]
[1609734872407,0.14033567,33330.0,33329.0,0.14033567]
[1609734873507,0.23143567,33330.0,33329.0,0.14033567]
[1609734874208,0.14033567,33330.0,33325.0,4.57]
[1609734874408,0.14033567,33326.0,33325.0,4.57]
[1609734875208,1.0,33333.0,33325.0,4.57]
[1609734876410,1.0,33333.0,33332.0,0.14033567]
[1609734876711,1.0,33338.0,33332.0,0.14033567]
[1609734877112,1.0893,33338.0,33332.0,0.14033567]
[1609734878312,1.0,33338.0,33335.0,4.1472]
[1609734878512,0.14033567,33336.0,33335.0,4.1472]
[1609734879214,0.22883567,33336.0,33335.0,4.1472]
[1609734879414,0.14033567,33336.0,33335.0,4.1472]
[1609734880716,1.14033567,33336.0,33332.0,0.14033567]
[1609734881420,1.14033567,33336.0,33327.0,3.596]
[1609734882420,0.14033567,33328.0,33327.0,3.596]
[1609734883923,0.22963567,33328.0,33327.0,3.596]
[1609734885222,0.14033567,33328.0,33327.0,3.596]
[1609734885722,0.14033567,33328.0,33324.0,0.14033567]
[1609734886123,0.22903567,33328.0,33324.0,0.14033567]
[1609734886323,0.22903567,33328.0,33319.0,0.15909]
[1609734886522,0.14033567,33320.0,33313.0,0.14033567]
[1609734887724,0.14033567,33320.0,33305.0,4.9803]
[1609734887925,0.14033567,33320.0,33298.0,1.16565]
[1609734888425,4.9617,33321.0,33302.0,0.14033567]
[1609734888629,0.0907,33320.0,33307.0,0.6036]
[1609734888826,5.0,33320.0,33307.0,0.6036]
[1609734889028,5.0,33320.0,33307.0,0.72803]
[1609734890026,0.0894,33319.0,33307.0,0.72803]
[1609734890226,5.0,33320.0,33307.0,0.72803]
[1609734890427,0.14033567,33308.0,33307.0,0.72803]
[1609734890829,1.14033567,33308.0,33307.0,0.72803]
[1609734891528,1.23133567,33308.0,33307.0,0.72803]
[1609734892028,1.14033567,33308.0,33307.0,0.72803]
[1609734892429,1.0,33308.0,33307.0,0.86836567]
[1609734892730,0.14033567,33312.0,33307.0,0.86836567]
[1609734894533,0.14033567,33312.0,33311.0,0.14033567]
[1609734896435,0.14033567,33312.0,33307.0,0.72803]
[1609734896736,1.14033567,33312.0,33307.0,0.72803]
[1609734896936,1.14033567,33312.0,33307.0,0.12443]
[1609734897135,1.14033567,33312.0,33302.0,0.14033567]
[1609734897737,1.14033567,33312.0,33307.0,3.5447]
[1609734897937,1.14033567,33312.0,33307.0,3.68297]
[1609734898538,1.0,33312.0,33308.0,0.14033567]
[1609734898736,0.0893,33322.0,33308.0,0.14033567]
[1609734898936,0.2756,33324.0,33308.0,0.14033567]
[1609734899336,0.0905,33323.0,33308.0,0.14033567]
[1609734899736,0.2756,33324.0,33308.0,0.14033567]
[1609734900137,0.2756,33324.0,33307.0,3.68297]
[1609734900637,0.0897,33323.0,33309.0,0.14033567]
[1609734901641,0.2756,33324.0,33309.0,0.14033567]
[1609734902642,0.14033567,33310.0,33309.0,0.14033567]
[1609734903644,0.14033567,33310.0,33309.0,4.48573567]
[1609734905142,0.14033567,33310.0,33309.0,0.14033567]
[1609734908749,0.14033567,33310.0,33309.0,4.36653567]
[1609734909553,0.14033567,33310.0,33309.0,0.14033567]
[1609734909750,0.14033567,33310.0,33300.0,4.1247]
[1609734910050,0.14033567,33310.0,33298.0,0.16565]
[1609734910252,0.14033567,33310.0,33288.0,3.6286]
[1609734910652,1.0,33299.0,33288.0,3.6286]
[1609734910854,1.0,33299.0,33297.0,0.14033567]
[1609734911552,0.0907,33298.0,33297.0,0.14033567]
[1609734911753,1.0,33299.0,33297.0,0.14033567]
[1609734911953,4.2449,33298.0,33297.0,0.14033567]
[1609734912754,4.38523567,33298.0,33297.0,0.14033567]
[1609734913755,4.47523567,33298.0,33297.0,0.14033567]
[1609734914659,5.47523567,33298.0,33297.0,0.14033567]
[1609734915458,1.14033567,33298.0,33297.0,0.14033567]
[1609734915957,1.0,33298.0,33287.0,4.6529]
[1609734916358,1.0,33298.0,33279.0,1.0]
[1609734916762,1.0899,33297.0,33272.0,4.8857]
[1609734916958,1.0899,33297.0,33296.0,0.14033567]
[1609734917160,1.0899,33297.0,33296.0,0.28256567]
[1609734918863,1.0,33297.0,33296.0,0.28256567]
[1609734919864,1.0898,33297.0,33296.0,0.28256567]
[1609734920662,0.0898,33297.0,33296.0,0.28256567]
[1609734921165,0.14033567,33306.0,33296.0,0.28256567]
[1609734922168,0.0897,33305.0,33296.0,0.28256567]
[1609734922670,0.0897,33305.0,33297.0,1.0]
[1609734922868,0.0897,33305.0,33304.0,0.14033567]
[1609734923070,0.0897,33305.0,33304.0,0.30263567]
[1609734923670,0.14033567,33306.0,33304.0,0.30263567]
[1609734924670,0.0887,33305.0,33304.0,0.30263567]
[1609734928279,0.14033567,33306.0,33304.0,0.30263567]
[1609734929380,0.0906,33305.0,33304.0,0.30263567]
[1609734930181,0.14033567,33306.0,33304.0,0.30263567]
[1609734930883,3.5091,33305.0,33304.0,0.30263567]
[1609734931181,3.5997,33305.0,33304.0,0.30263567]
[1609734931481,3.5091,33305.0,33304.0,0.1623]
[1609734931683,3.5091,33305.0,33296.0,0.14223]
[1609734931982,3.5091,33305.0,33295.0,1.0]
[1609734932382,0.14033567,33306.0,33295.0,1.0]
[1609734932582,0.089,33305.0,33295.0,1.12068]
[1609734932783,1.0,33301.0,33295.0,0.12068]
[1609734933183,1.0,33301.0,33298.0,0.14033567]
[1609734935085,0.14033567,33299.0,33298.0,0.14033567]
[1609734936186,0.14033567,33299.0,33295.0,0.12068]
[1609734936688,1.0,33297.0,33295.0,0.12068]
[1609734937388,0.5412,33296.0,33295.0,0.12068]
[1609734937790,0.5412,33296.0,33290.0,0.14033567]
[1609734938190,1.0,33297.0,33281.0,1.0]
[1609734938389,5.0164,33291.0,33290.0,0.12781]
[1609734938591,5.0164,33291.0,33281.0,1.0]
[1609734938789,6.0164,33291.0,33268.0,1.0]
[1609734939189,6.0164,33291.0,33271.0,0.30469567]
[1609734940089,6.0164,33291.0,33271.0,0.16436]
[1609734940292,1.0,33291.0,33271.0,0.16436]
[1609734940492,3.4995,33275.0,33271.0,0.16436]
[1609734941098,0.14033567,33272.0,33271.0,0.16436]
[1609734941292,5.18273567,33272.0,33271.0,0.16436]
[1609734941897,5.27273567,33272.0,33271.0,0.16436]
[1609734942398,3.71413567,33272.0,33271.0,0.16436]
[1609734942697,4.71413567,33272.0,33271.0,0.16436]
[1609734943097,4.5738,33272.0,33271.0,0.16436]
[1609734943297,4.5738,33272.0,33254.0,1.0]
[1609734943497,4.5738,33272.0,33260.0,0.14033567]
[1609734943700,1.0,33272.0,33260.0,0.14033567]
[1609734943899,1.0,33272.0,33260.0,0.25803567]
[1609734944700,1.0,33279.0,33260.0,0.25803567]
[1609734945499,1.0,33279.0,33260.0,0.1177]
[1609734946001,1.0,33279.0,33271.0,0.14033567]
[1609734946301,1.0,33279.0,33271.0,0.24229567]
[1609734946700,3.5221,33272.0,33271.0,0.24229567]
[1609734946900,3.5221,33272.0,33271.0,0.10196]
[1609734947100,0.14442,33289.0,33271.0,0.10196]
[1609734948503,0.14442,33289.0,33274.0,0.14033567]
[1609734948705,0.7834563,33292.0,33277.0,4.034]
[1609734948904,0.7834563,33292.0,33274.0,0.14033567]
[1609734949303,0.7834563,33292.0,33271.0,0.10196]
[1609734949504,0.278,33293.0,33271.0,0.10196]
[1609734950505,0.278,33293.0,33279.0,0.14033567]
[1609734950905,0.278,33293.0,33279.0,0.28612567]
[1609734951608,0.0904,33292.0,33279.0,0.28612567]
[1609734951906,0.278,33293.0,33279.0,0.28612567]
[1609734952406,0.0909,33292.0,33284.0,0.14033567]
[1609734952606,0.278,33293.0,33284.0,0.14033567]
[1609734952806,1.0,33290.0,33284.0,0.14033567]
[1609734953407,0.0898,33289.0,33284.0,0.14033567]
[1609734953608,1.0,33290.0,33284.0,0.14033567]
[1609734954009,1.0,33290.0,33288.0,3.8174]
[1609734954408,0.14033567,33289.0,33288.0,3.8174]
[1609734956211,1.0,33290.0,33279.0,0.14579]
[1609734956411,1.0,33290.0,33278.0,3.9159]
[1609734956611,1.0,33290.0,33279.0,0.11329]
[1609734956812,1.0,33289.0,33282.0,0.14033567]
[1609734957411,0.0897,33288.0,33282.0,0.14033567]
[1609734957610,1.0,33289.0,33282.0,0.14033567]
[1609734958812,0.14033567,33283.0,33282.0,0.14033567]
[1609734959614,0.14033567,33283.0,33282.0,4.31843567]
[1609734960014,1.0,33287.0,33282.0,4.31843567]
[1609734960716,1.0,33291.0,33282.0,4.31843567]
[1609734960916,1.0,33291.0,33286.0,0.14033567]
[1609734962720,0.278,33293.0,33286.0,0.14033567]
[1609734962923,0.278,33293.0,33282.0,4.1781]
[1609734963321,0.278,33293.0,33286.0,0.14033567]
[1609734964023,0.0909,33292.0,33286.0,0.14033567]
[1609734964224,0.278,33293.0,33282.0,4.1781]
[1609734964826,1.0,33289.0,33282.0,4.1781]
[1609734965225,0.0888,33288.0,33282.0,4.1781]
[1609734965426,1.14033567,33289.0,33287.0,0.14033567]
[1609734966227,1.14033567,33289.0,33288.0,0.5544]
[1609734966828,0.14033567,33289.0,33288.0,0.5544]
[1609734967028,0.278,33293.0,33288.0,0.5544]
[1609734967228,1.0,33299.0,33288.0,0.5544]
[1609734967628,1.0,33299.0,33296.0,0.82213567]
[1609734968831,1.0,33303.0,33296.0,0.14033567]
[1609734969032,1.0,33303.0,33302.0,4.8624]
[1609734969531,1.14033567,33303.0,33302.0,4.8624]
[1609734970331,1.0,33303.0,33302.0,4.8624]
[1609734971533,1.14033567,33303.0,33302.0,5.00273567]
[1609734972836,0.14033567,33303.0,33302.0,5.00273567]
[1609734973736,0.14033567,33303.0,33302.0,0.14033567]
[1609734974736,0.14033567,33303.0,33295.0,4.9258]
[1609734975536,0.2902,33312.0,33299.0,0.14033567]
[1609734976136,0.2902,33312.0,33295.0,4.9258]
[1609734976737,1.0,33304.0,33295.0,4.9258]
[1609734976936,1.16059,33304.0,33295.0,4.9258]
[1609734977536,1.16059,33304.0,33302.0,0.14033567]
[1609734978739,0.16059,33304.0,33302.0,0.14033567]
[1609734979439,0.16059,33304.0,33303.0,4.5648]
[1609734979839,1.0,33307.0,33303.0,4.5648]
[1609734980040,1.0,33307.0,33306.0,0.14033567]
[1609734980441,0.506,33307.0,33303.0,4.5648]
[1609734980840,0.78175714,33314.0,33306.0,1.0]
[1609734981440,0.12991,33323.0,33306.0,1.0]
[1609734982141,0.12991,33323.0,33322.0,0.14033567]
[1609734982542,0.12991,33323.0,33322.0,4.56893567]
[1609734984545,0.14033567,33328.0,33322.0,4.56893567]
[1609734986150,0.14033567,33328.0,33327.0,0.14033567]
[1609734989152,0.14033567,33328.0,33327.0,3.55413567]
[1609734990754,2.05717943,33339.0,33327.0,3.55413567]
[1609734990954,1.78417943,33339.0,33327.0,3.55413567]
[1609734991757,1.0,33339.0,33327.0,3.55413567]
[1609734992057,1.0,33339.0,33338.0,0.14033567]
[1609734992257,1.0,33339.0,33338.0,0.76603567]
[1609734992458,1.0,33339.0,33338.0,0.6257]
[1609734992756,0.78395576,33340.0,33338.0,0.6257]
[1609734992957,0.14033567,33343.0,33338.0,0.6257]
[1609734994057,0.14033567,33339.0,33338.0,0.6257]
[1609735000869,1.14033567,33339.0,33338.0,0.6257]
[1609735002674,1.14033567,33339.0,33333.0,0.14033567]
[1609735003073,1.14033567,33339.0,33324.0,0.11696]
[1609735003273,1.14033567,33339.0,33323.0,4.4198]
[1609735004073,1.14033567,33339.0,33322.0,1.0]
[1609735004274,1.0,33339.0,33328.0,4.2127]
[1609735004774,1.0,33329.0,33328.0,4.2127]
[1609735005375,1.14033567,33329.0,33328.0,4.2127]
[1609735006379,1.14033567,33329.0,33324.0,0.1313]
[1609735006779,1.0,33328.0,33324.0,0.1313]
[1609735007378,0.14033567,33325.0,33324.0,0.1313]
[1609735009182,1.0,33332.0,33324.0,0.1313]
[1609735009383,1.0,33332.0,33326.0,3.4616]
[1609735009782,0.14033567,33327.0,33326.0,3.4616]
[1609735009982,1.0,33332.0,33326.0,3.4616]
[1609735010884,0.78959015,33340.0,33328.0,1.0]
[1609735011085,0.2784,33341.0,33328.0,1.0]
[1609735011785,0.2784,33341.0,33335.0,0.14033567]
[1609735012188,0.2784,33341.0,33328.0,1.0]
[1609735012386,4.1036,33334.0,33328.0,1.0]
[1609735012789,4.1036,33334.0,33324.0,0.1392]
[1609735013891,0.14033567,33325.0,33324.0,0.1392]
[1609735014692,0.14033567,33325.0,33317.0,0.13728]
[1609735014894,1.14033567,33325.0,33313.0,3.998]
[1609735015896,1.0,33325.0,33313.0,3.998]
[1609735016495,1.0,33325.0,33324.0,0.14033567]
[1609735016696,1.0,33329.0,33324.0,0.26718567]
[1609735016898,1.0,33329.0,33324.0,0.12685]
[1609735018599,0.14033567,33325.0,33324.0,0.12685]
[1609735020703,1.14033567,33325.0,33324.0,0.12685]
[1609735021605,1.14033567,33325.0,33322.0,4.8871]
[1609735022205,1.14033567,33325.0,33318.0,0.14033567]
[1609735022607,0.14033567,33319.0,33318.0,0.14033567]
[1609735024206,0.14033567,33319.0,33318.0,0.84453567]
[1609735025208,1.0,33331.0,33318.0,0.7042]
[1609735025407,1.0,33331.0,33315.0,1.0]
[1609735025608,1.0,33331.0,33321.0,3.6193]
[1609735025807,1.0,33331.0,33321.0,3.72131]
[1609735026708,0.14033567,33322.0,33321.0,3.72131]
[1609735027311,0.14033567,33322.0,33321.0,0.10201]
[1609735028713,0.7932738,33340.0,33321.0,0.10201]
[1609735028912,1.0720414,33341.0,33321.0,0.10201]
[1609735029111,0.14033567,33330.0,33329.0,0.14033567]
[1609735034620,0.14033567,33330.0,33329.0,4.81453567]
[1609735036223,0.14033567,33330.0,33329.0,4.6742]
[1609735036424,0.14033567,33330.0,33327.0,1.0]
[1609735036824,1.14033567,33330.0,33322.0,4.6835]
[1609735037225,0.14033567,33323.0,33321.0,0.10201]
[1609735037624,0.14033567,33323.0,33320.0,0.14033567]
[1609735038726,1.14033567,33323.0,33320.0,0.14033567]
[1609735039527,1.14033567,33323.0,33308.0,4.99415]
[1609735039828,1.14033567,33323.0,33308.0,0.10485]
[1609735040029,3.8095,33316.0,33308.0,0.10485]
[1609735040229,3.8095,33316.0,33306.0,1.0]
[1609735040630,4.827,33312.0,33306.0,1.0]
[1609735040828,5.827,33312.0,33296.0,1.0]
[1609735041230,5.827,33312.0,33302.0,0.14033567]
[1609735041428,1.0,33312.0,33302.0,0.28235567]
[1609735041730,4.2237,33303.0,33302.0,0.28235567]
[1609735043031,1.0,33308.0,33302.0,0.28235567]
[1609735043234,0.14033567,33303.0,33302.0,0.28235567]
[1609735046536,1.79338832,33313.0,33302.0,0.28235567]
[1609735046737,0.79338832,33313.0,33302.0,1.28235567]
[1609735047237,0.79338832,33313.0,33312.0,0.14033567]
[1609735049239,0.93372399,33313.0,33312.0,0.14033567]
[1609735051147,0.14033567,33313.0,33312.0,0.14033567]
[1609735055150,0.14033567,33313.0,33310.0,4.0096]
[1609735056450,0.14033567,33313.0,33306.0,0.14033567]
[1609735056852,1.0,33311.0,33306.0,0.14033567]
[1609735057052,1.0,33311.0,33302.0,0.14202]
[1609735057254,0.14033567,33303.0,33301.0,4.6999]
[1609735057455,0.14033567,33303.0,33299.0,0.14033567]
[1609735058758,0.6505,33302.0,33299.0,0.14033567]
[1609735061061,0.14033567,33303.0,33299.0,0.14033567]
[1609735061261,0.14033567,33303.0,33299.0,0.26986567]
[1609735062362,4.57503567,33303.0,33299.0,0.26986567]
[1609735063165,4.57503567,33303.0,33299.0,0.12953]
[1609735064264,0.14033567,33303.0,33299.0,0.12953]
[1609735064464,3.77,33300.0,33299.0,0.12953]
[1609735064666,3.77,33300.0,33288.0,1.0]
[1609735064865,0.14033567,33303.0,33272.0,2.20944483]
[1609735065067,4.457,33289.0,33266.0,2.20965908]
[1609735065266,4.457,33289.0,33287.0,0.14033567]
[1609735065470,4.457,33289.0,33287.0,0.1563]
[1609735065670,0.38177,33307.0,33287.0,0.1563]
[1609735065869,4.4618,33288.0,33287.0,0.1563]
[1609735067371,4.60213567,33288.0,33287.0,0.1563]
[1609735067771,0.14033567,33288.0,33287.0,0.1563]
[1609735070476,0.14033567,33288.0,33285.0,3.4995]
[1609735072776,0.14033567,33288.0,33287.0,1.0]
[1609735073079,0.14033567,33288.0,33287.0,1.15937]
[1609735074879,0.14033567,33288.0,33287.0,0.15937]
[1609735075880,5.12823567,33288.0,33287.0,0.15937]
[1609735078184,5.12823567,33288.0,33281.0,0.14033567]
[1609735079386,4.9879,33288.0,33286.0,0.14033567]
[1609735079885,4.9879,33288.0,33286.0,0.24247567]
[1609735080185,1.0,33290.0,33286.0,0.24247567]
[1609735080788,1.0,33293.0,33286.0,0.24247567]
[1609735081388,0.14033567,33287.0,33286.0,0.24247567]
[1609735082689,1.0,33293.0,33286.0,0.24247567]
[1609735082891,1.03,33303.0,33286.0,1.24247567]
[1609735083291,1.03,33303.0,33292.0,0.14033567]
[1609735084893,4.0689,33294.0,33292.0,0.14033567]
[1609735085194,0.03,33303.0,33292.0,0.14033567]
[1609735085395,0.14033567,33293.0,33292.0,0.14033567]